bitfinex/quotes_SOLUSD_20250126
["timestamp","ask_amount","ask_price","bid_price","bid_amount"]
[1737925238175,8.49774812,253.33,253.32,0.063]
[1737925239079,32.27463212,253.33,253.32,0.063]
[1737925239377,32.27463212,253.33,253.32,0.0001]
[1737925239589,32.66443221,253.33,253.32,0.0001]
[1737925239876,1.0,253.32,253.28,0.063]
[1737925240056,8.49774812,253.29,253.28,0.063]
[1737925241476,12.44574812,253.29,253.28,0.063]
[1737925246486,8.49774812,253.29,253.28,0.063]
[1737925246688,8.49774812,253.32,253.28,0.063]
[1737925246989,8.49774812,253.34,253.28,0.063]
[1737925247290,8.49774812,253.32,253.28,0.063]
[1737925248674,12.44504812,253.34,253.28,0.063]
[1737925253484,8.49774812,253.36,253.28,4.011]
[1737925253661,8.49774812,253.36,253.28,0.063]
[1737925254468,12.44464812,253.36,253.28,4.0111]
[1737925255364,12.44464812,253.36,253.28,0.063]
[1737925255765,0.03,253.34,253.28,0.063]
[1737925255962,8.52774812,253.34,253.28,0.063]
[1737925256896,0.03,253.34,253.28,0.063]
[1737925258281,0.03,253.34,253.28,4.0111]
[1737925258477,0.03,253.34,253.28,0.063]
[1737925259899,8.91754821,253.34,253.28,0.063]
[1737925260201,8.49774812,253.32,253.28,0.063]
[1737925260777,8.49774812,253.3,253.28,0.063]
[1737925261794,12.44564812,253.3,253.28,0.063]
[1737925264703,5.44938693,253.29,253.28,0.063]
[1737925265593,29.61607102,253.29,253.28,0.063]
[1737925266872,20.0,253.25,253.23,41.72995966]
[1737925267074,5.44938693,253.24,253.23,41.72995966]
[1737925267495,29.22627093,253.24,253.23,41.72995966]
[1737925267702,54.00381865,253.24,253.23,0.54695966]
[1737925267879,32.20627093,253.24,253.23,5.966e-05]
[1737925268085,54.00381865,253.24,253.23,5.966e-05]
[1737925268391,55.00381865,253.24,253.23,5.966e-05]
[1737925268590,35.27821813,253.24,253.23,5.966e-05]
[1737925268904,41.22701813,253.24,253.23,5.966e-05]
[1737925269402,41.22701813,253.24,253.18,0.063]
[1737925269403,1.0,253.17,253.13,0.063]
[1737925269600,8.52133413,253.14,253.13,0.063]
[1737925269803,8.91113422,253.14,253.13,0.063]
[1737925270101,32.68801822,253.14,253.13,0.063]
[1737925270802,32.68801822,253.14,253.07,0.063]
[1737925270803,8.52133413,253.09,253.07,0.063]
[1737925271004,3.951,253.1,253.07,0.063]
[1737925271306,10.12853413,253.11,253.07,0.063]
[1737925272009,14.07943413,253.11,253.07,0.063]
[1737925272577,12.47223413,253.11,253.07,0.063]
[1737925272782,8.52133413,253.11,253.07,0.063]
[1737925274009,0.38980009,253.1,253.07,0.063]
[1737925275011,0.38980009,253.11,253.07,0.063]
[1737925275392,3.951,253.1,253.07,0.063]
[1737925275591,0.38980009,253.09,253.07,0.063]
[1737925276697,8.91113422,253.09,253.07,0.063]
[1737925276899,11.89113422,253.09,253.07,0.063]
[1737925277414,2.98,253.09,253.07,0.063]
[1737925277991,0.38980009,253.08,253.07,0.063]
[1737925279130,0.38980009,253.08,252.8,80.48797899]
[1737925279131,2.7601,252.83,252.8,80.48797899]
[1737925279419,9.52133413,252.81,252.59,20.0]
[1737925279714,11.96133413,252.82,252.64,1.0]
[1737925279902,8.52133413,252.82,252.64,1.0]
[1737925280119,8.52133413,252.82,252.63,1.0]
[1737925280287,8.52133413,252.78,252.61,21.0]
[1737925280489,8.52133413,252.76,252.64,0.166]
[1737925280714,13.68151787,252.75,252.64,0.166]
[1737925280895,13.68151787,252.73,252.64,0.166]
[1737925281207,0.38980009,252.81,252.64,0.166]
[1737925281208,13.68151787,252.66,252.64,0.166]
[1737925281411,13.68151787,252.66,252.54,6.12641831]
[1737925281412,0.38980009,252.65,252.54,6.12641831]
[1737925281617,13.68151787,252.63,252.54,6.12641831]
[1737925281787,13.68151787,252.61,252.54,6.12641831]
[1737925281987,13.68151787,252.63,252.54,6.12641831]
[1737925282186,13.68151787,252.63,252.53,0.063]
[1737925282409,6.07984691,252.64,252.53,4.0227]
[1737925282915,7.9296451,252.62,252.53,4.0227]
[1737925283211,7.9296451,252.62,252.53,0.063]
[1737925283413,7.9296451,252.62,252.53,4.0227]
[1737925283713,7.9296451,252.62,252.53,24.0227]
[1737925283903,7.9296451,252.62,252.53,25.0227]
[1737925284102,7.9296451,252.62,252.57,20.0]
[1737925284295,7.9296451,252.61,252.53,13.9225]
[1737925284502,7.9296451,252.61,252.53,4.0227]
[1737925285213,34.61171919,252.61,252.53,4.0227]
[1737925285513,1.0,252.58,252.37,23.776884]
[1737925285710,1.0,252.57,252.37,23.776884]
[1737925286012,1.0,252.57,252.36,33.88160178]
[1737925286216,1.0,252.51,252.36,33.88160178]
[1737925286395,2.0,252.55,252.39,20.0]
[1737925286591,1.0,252.52,252.39,20.0]
[1737925287117,1.0,252.52,252.41,20.0]
[1737925287311,1.0,252.52,252.45,20.0]
[1737925287512,1.0,252.57,252.46,43.776884]
[1737925287816,1.0,252.59,252.46,43.776884]
[1737925288015,1.0,252.57,252.46,43.776884]
[1737925289239,1.0,252.6,252.46,43.776884]
[1737925289403,1.0,252.6,252.51,20.0]
[1737925289716,1.0,252.6,252.55,20.0]
[1737925290014,26.68207409,252.61,252.59,20.0]
[1737925290206,7.409e-05,252.61,252.59,20.0]
[1737925290605,7.409e-05,252.61,252.5,20.0]
[1737925291218,7.409e-05,252.61,252.54,20.0]
[1737925291518,7.409e-05,252.61,252.58,20.0]
[1737925291813,7.409e-05,252.61,252.59,20.0]
[1737925293105,7.409e-05,252.61,252.6,3.9588]
[1737925294396,1.0,252.69,252.6,3.9588]
[1737925294597,1.0,252.67,252.6,13.8558]
[1737925295106,1.0,252.69,252.6,13.8558]
[1737925297005,1.0,252.67,252.6,13.8558]
[1737925297397,1.0,252.67,252.6,3.9588]
[1737925297617,1.0,252.63,252.6,3.9588]
[1737925298617,1.0,252.63,252.56,3.9594]
[1737925298927,1.0,252.63,252.58,20.0]
[1737925299420,1.0,252.63,252.59,3.9589]
[1737925299923,1.0,252.63,252.54,20.0]
[1737925300312,1.0,252.61,252.54,20.0]
[1737925301128,1.0,252.63,252.54,20.0]
[1737925301430,1.0,252.63,252.55,3.9596]
[1737925301812,1.0,252.58,252.53,3.9597]
[1737925302122,1.0,252.58,252.51,23.9601]
[1737925302298,1.0,252.56,252.51,3.9601]
[1737925302501,1.0,252.58,252.49,3.9604]
[1737925302914,1.0,252.56,252.49,23.9604]
[1737925303829,1.0,252.48,252.4,20.0]
[1737925304037,1.0,252.44,252.38,3.9622]
[1737925304831,1.0,252.46,252.38,3.9622]
[1737925305036,1.0,252.45,252.38,3.9622]
[1737925305219,1.0,252.43,252.34,3.9629]
[1737925306203,1.0,252.46,252.37,20.0]
[1737925306539,1.0,252.48,252.37,20.0]
[1737925306709,1.0,252.5,252.38,43.776884]
[1737925306908,1.0,252.52,252.38,43.776884]
[1737925307110,1.0,252.57,252.38,43.776884]
[1737925307323,1.0,252.57,252.43,20.0]
[1737925307523,1.0,252.57,252.47,20.0]
[1737925307932,0.03,252.61,252.47,20.0]
[1737925307933,1.0,252.56,252.47,20.0]
[1737925308426,1.0,252.55,252.47,20.0]
[1737925308737,1.0,252.57,252.47,20.0]
[1737925309110,1.0,252.56,252.47,20.0]
[1737925309317,1.0,252.54,252.47,20.0]
[1737925309515,1.0,252.54,252.48,3.9607]
[1737925310438,1.0,252.56,252.48,3.9607]
[1737925310608,23.776884,252.6,252.37,1.0]
[1737925310807,13.70732028,252.6,252.41,20.0]
[1737925311133,18.67200328,252.66,252.49,20.0]
[1737925311434,18.67200328,252.66,252.5,13.8612]
[1737925311629,4.964683,252.66,252.51,0.39592153]
[1737925311838,13.70732028,252.67,252.5,13.8612]
[1737925312345,13.70732028,252.67,252.53,20.0]
[1737925312512,6.2089,252.71,252.54,20.39588872]
[1737925312837,13.70732028,252.73,252.54,20.39588872]
[1737925313047,51.19733899,252.75,252.54,20.39588872]
[1737925313358,13.70732028,252.73,252.54,20.39588872]
[1737925313512,13.70732028,252.73,252.58,20.0]
[1737925314139,13.70732028,252.69,252.55,13.8586]
[1737925314353,13.70732028,252.67,252.55,13.8586]
[1737925314717,13.70732028,252.65,252.55,3.9596]
[1737925315214,13.70732028,252.63,252.5,20.0]
[1737925315421,13.70732028,252.65,252.5,20.0]
[1737925315635,13.70732028,252.65,252.51,3.9602]
[1737925315836,17.66532028,252.65,252.51,3.9602]
[1737925316134,13.70732028,252.65,252.51,3.9602]
[1737925316349,13.70732028,252.67,252.54,20.0]
[1737925316516,17.66482028,252.69,252.54,20.0]
[1737925316843,13.70732028,252.71,252.54,20.0]
[1737925317019,13.70732028,252.73,252.55,0.39585885]
[1737925317221,3.9566,252.74,252.55,0.39585885]
[1737925317739,3.9566,252.74,252.59,20.0]
[1737925318118,13.70732028,252.73,252.59,20.0]
[1737925318539,17.66422028,252.73,252.6,3.9588]
[1737925319260,55.18383899,252.75,252.6,3.9588]
[1737925319548,13.70732028,252.73,252.6,3.9588]
[1737925320723,55.18383899,252.75,252.6,3.9588]
[1737925321042,51.22733899,252.75,252.6,3.9588]
[1737925321232,37.52001871,252.75,252.63,20.0]
[1737925322240,37.52001871,252.75,252.64,3.9582]
[1737925322417,37.52001871,252.75,252.65,0.39571126]
[1737925322619,37.52001871,252.75,252.64,3.9582]
[1737925325543,37.52001871,252.75,252.69,20.0]
[1737925325848,37.52001871,252.75,252.7,20.39561724]
[1737925326343,37.52001871,252.75,252.74,20.0]
[1737925327047,0.03,252.87,252.73,23.776884]
[1737925327226,0.03,252.87,252.76,20.0]
[1737925327423,0.03,252.87,252.78,3.956]
[1737925327625,0.03,252.87,252.79,0.39548402]
[1737925328344,0.03,252.87,252.77,0.39548834]
[1737925328528,0.03,252.87,252.74,20.0]
[1737925329124,0.03,252.87,252.73,3.9566]
[1737925329541,3.9846,252.87,252.73,3.9566]
[1737925329748,3.9846,252.87,252.67,16.352]
[1737925329749,13.70732028,252.82,252.67,6.4578]
[1737925330323,13.70732028,252.82,252.68,0.39565769]
[1737925330743,13.20732028,252.84,252.68,4.35305769]
[1737925331570,13.20732028,252.84,252.68,3.9574]
[1737925331843,3.9552,252.83,252.68,3.9574]
[1737925332054,3.9552,252.83,252.67,6.4578]
[1737925332241,13.70732028,252.82,252.67,6.4578]
[1737925332645,13.70732028,252.8,252.67,6.4578]
[1737925332958,13.70732028,252.76,252.61,10.4164]
[1737925333133,13.70732028,252.74,252.61,6.4578]
[1737925333928,3.9567,252.73,252.61,6.4578]
[1737925334452,13.70732028,252.72,252.61,6.4578]
[1737925335056,3.9567,252.73,252.55,6.4578]
[1737925335057,13.70732028,252.66,252.55,6.4578]
[1737925335242,13.70732028,252.66,252.53,23.9598]
[1737925335860,3.958,252.65,252.53,23.9598]
[1737925336834,3.958,252.65,252.53,20.0]
[1737925338466,13.70732028,252.66,252.53,24.35562309]
[1737925339167,13.70732028,252.66,252.53,23.9597]
[1737925339644,3.958,252.65,252.53,23.9597]
[1737925340352,13.70732028,252.72,252.54,20.39587806]
[1737925340747,13.70732028,252.72,252.58,20.0]
[1737925340930,13.70732028,252.72,252.59,0.39576046]
[1737925341130,13.70732028,252.74,252.59,0.39576046]
[1737925341342,13.70732028,252.72,252.59,0.39576046]
[1737925341555,13.70732028,252.72,252.61,3.9586]
[1737925342346,13.70732028,252.68,252.58,3.9591]
[1737925342655,13.70732028,252.66,252.54,3.9597]
[1737925343544,3.958,252.65,252.53,20.0]
[1737925343857,13.70732028,252.64,252.52,3.9599]
[1737925344857,3.9583,252.63,252.52,3.9599]
[1737925345535,3.9582,252.64,252.52,3.9599]
[1737925345961,13.70732028,252.68,252.53,20.0]
[1737925346137,17.66492028,252.68,252.53,20.0]
[1737925346869,17.66492028,252.68,252.54,23.9597]
[1737925347342,13.70732028,252.7,252.55,0.39585623]
[1737925348669,13.70732028,252.7,252.56,3.9594]
[1737925348670,3.9574,252.69,252.56,3.9594]
[1737925349860,3.9574,252.69,252.5,6.4578]
[1737925349861,13.70732028,252.66,252.5,6.4578]
[1737925350058,3.9574,252.69,252.5,6.4578]
[1737925350059,13.70732028,252.64,252.51,3.9601]
[1737925351062,3.9583,252.63,252.51,3.9601]
[1737925351268,13.70732028,252.62,252.53,0.063]
[1737925352376,3.9586,252.61,252.53,0.063]
[1737925353280,13.70732028,252.6,252.53,0.063]
[1737925354561,8.56052556,252.6,252.53,0.063]
[1737925355071,8.56052556,252.62,252.53,0.063]
[1737925355259,8.56052556,252.64,252.53,4.0228]
[1737925356376,3.9583,252.63,252.53,4.0228]
[1737925357378,8.56052556,252.62,252.53,0.063]
[1737925358292,8.56052556,252.62,252.53,4.0228]
[1737925358580,8.56052556,252.64,252.53,4.0228]
[1737925360079,12.51872556,252.64,252.53,4.0228]
[1737925360464,8.56052556,252.62,252.53,4.0228]
[1737925360672,8.56052556,252.6,252.53,0.063]
[1737925361987,3.9586,252.61,252.53,0.063]
[1737925362173,3.9586,252.61,252.53,4.0229]
[1737925362375,3.9584,252.63,252.53,4.0229]
[1737925363062,8.56052556,252.62,252.53,4.0229]
[1737925363470,12.51912556,252.62,252.53,4.0229]
[1737925367085,8.56052556,252.66,252.53,33.9227]
[1737925367280,8.56052556,252.68,252.54,0.395967]
[1737925367484,8.56052556,252.7,252.54,24.172851]
[1737925368284,8.56052556,252.68,252.54,0.395967]
[1737925368488,8.56052556,252.68,252.55,13.8586]
[1737925368709,8.56052556,252.7,252.56,0.39580629]
[1737925370090,3.9574,252.69,252.57,3.9592]
[1737925370277,8.56052556,252.68,252.57,3.9592]
[1737925370482,8.56052556,252.64,252.53,20.063]
[1737925370703,8.56052556,252.62,252.55,3.9594]
[1737925370997,8.56052556,252.56,252.53,0.063]
[1737925371169,8.56052556,252.54,252.53,0.063]
[1737925371505,8.56052556,252.56,252.53,0.063]
[1737925372165,12.51992556,252.56,252.53,0.063]
[1737925373183,8.56052556,252.54,252.53,0.063]
[1737925376501,32.33740956,252.54,252.53,0.063]
[1737925377101,8.56052556,252.54,252.53,0.063]
[1737925379324,32.33740956,252.54,252.53,0.063]
[1737925380801,8.56052556,252.54,252.53,0.063]
[1737925382392,8.56052556,252.59,252.53,0.063]
[1737925382595,8.56052556,252.62,252.53,0.063]
[1737925382914,8.56052556,252.62,252.53,4.0228]
[1737925382915,8.56052556,252.6,252.53,4.0228]
[1737925383786,8.56052556,252.64,252.53,4.0228]
[1737925384125,8.56052556,252.67,252.53,4.0228]
[1737925384289,8.56052556,252.69,252.54,6.233]
[1737925384491,8.56052556,252.69,252.55,1.5253]
[1737925384908,14.46739799,252.71,252.55,1.5253]
[1737925385086,9.86397243,252.71,252.56,0.39585941]
[1737925385290,8.56052556,252.69,252.55,1.5253]
[1737925385727,8.56052556,252.69,252.56,3.9594]
[1737925386325,8.56052556,252.67,252.55,1.5253]
[1737925386498,8.56052556,252.67,252.55,5.4848]
[1737925386817,8.56052556,252.65,252.55,5.4848]
[1737925387316,8.56052556,252.67,252.55,5.4848]
[1737925387515,8.56052556,252.65,252.55,5.4848]
[1737925388116,8.56052556,252.59,252.53,0.063]
[1737925388306,8.56052556,252.57,252.53,0.063]
[1737925389502,3.9594,252.56,252.53,0.063]
[1737925390231,8.56052556,252.63,252.53,0.063]
[1737925390403,3.9578,252.66,252.53,0.063]
[1737925390603,8.56052556,252.65,252.53,0.063]
[1737925390804,8.56052556,252.63,252.53,0.063]
[1737925391518,3.9585,252.62,252.53,0.063]
[1737925393029,3.9582,252.64,252.53,4.41873577]
[1737925393403,8.56052556,252.65,252.53,0.45893577]
[1737925393610,8.56052556,252.58,252.53,0.063]
[1737925393811,8.56052556,252.56,252.53,0.063]
[1737925394735,8.56052556,252.58,252.53,0.063]
[1737925395734,8.56052556,252.64,252.53,4.41875629]
[1737925396230,8.56052556,252.62,252.53,4.41875629]
[1737925397627,12.51902556,252.62,252.53,4.41875629]
[1737925397836,8.56052556,252.58,252.53,0.063]
[1737925399033,12.51972556,252.58,252.53,0.063]
[1737925399635,8.56052556,252.54,252.53,0.063]
[1737925401238,12.52022556,252.54,252.51,0.063]
[1737925401436,8.56052556,252.52,252.51,0.063]
[1737925402935,12.52052556,252.52,252.51,0.063]
[1737925403444,22.42072556,252.52,252.42,6.4192]
[1737925403741,8.51347463,252.43,252.42,6.4192]
[1737925404234,8.51347463,252.43,252.36,8.2094]
[1737925404433,8.56052556,252.4,252.36,8.2094]
[1737925407234,3.14,252.54,252.3,6.7488]
[1737925407235,8.56052556,252.37,252.3,6.7488]
[1737925408212,8.56052556,252.35,252.3,6.7488]
[1737925408829,8.56052556,252.35,252.3,0.201]
[1737925410513,8.56052556,252.33,252.3,0.201]
[1737925412045,8.56052556,252.35,252.3,0.201]
[1737925412442,8.56052556,252.39,252.31,4.35959462]
[1737925412649,8.56052556,252.41,252.31,4.35959462]
[1737925413339,8.56052556,252.39,252.31,4.35959462]
[1737925413741,8.56052556,252.33,252.3,0.264]
[1737925413950,8.56052556,252.31,252.3,0.264]
[1737925414366,20.0,252.41,252.3,0.264]
[1737925414367,8.56052556,252.33,252.3,0.264]
[1737925415057,8.56052556,252.31,252.3,0.264]
[1737925429366,8.56052556,252.33,252.3,0.264]
[1737925435766,8.56052556,252.31,252.3,0.264]
[1737925436952,8.56052556,252.33,252.3,0.264]
[1737925437747,8.56052556,252.39,252.3,14.1363]
[1737925437966,0.03,252.43,252.32,23.776884]
[1737925438272,0.03,252.43,252.37,6.0092]
[1737925438444,0.03,252.43,252.38,0.39605352]
[1737925439184,0.03,252.43,252.38,3.9622]
[1737925439480,0.03,252.43,252.39,0.39611896]
[1737925440277,8.56052556,252.5,252.39,0.39611896]
[1737925440278,8.56052556,252.54,252.42,20.0]
[1737925440458,8.56052556,252.56,252.43,0.39597043]
[1737925440662,8.56052556,252.56,252.43,24.17285443]
[1737925440861,8.56052556,252.56,252.43,0.39597043]
[1737925441080,8.56052556,252.56,252.43,20.39597043]
[1737925441381,1.6195,252.68,252.45,6.0092]
[1737925441382,8.56052556,252.6,252.45,6.0092]
[1737925441574,8.56052556,252.6,252.46,24.17278075]
[1737925442689,8.56052556,252.6,252.47,3.9608]
[1737925442982,8.56052556,252.6,252.48,0.39590783]
[1737925443875,8.56052556,252.6,252.48,24.17279183]
[1737925444180,8.56052556,252.6,252.45,6.0092]
[1737925444181,8.56052556,252.52,252.45,6.0092]
[1737925444412,8.56052556,252.51,252.45,6.0092]
[1737925445585,3.9603,252.5,252.45,6.0092]
[1737925446278,8.56052556,252.61,252.46,0.39607966]
[1737925446455,12.51892556,252.63,252.49,20.0]
[1737925446656,12.51892556,252.63,252.5,0.39592481]
[1737925447069,12.51892556,252.63,252.49,20.0]
[1737925447871,12.51892556,252.63,252.5,3.9603]
[1737925449080,0.03,252.56,252.5,3.9603]
[1737925450283,0.03,252.56,252.53,20.0]
[1737925450582,0.03,252.56,252.54,0.39586311]
[1737925451480,0.03,252.56,252.55,6.4736]
[1737925451976,0.03,252.56,252.55,34.210084]
[1737925452379,0.03,252.69,252.59,23.776884]
[1737925452572,0.03,252.69,252.62,20.0]
[1737925452884,0.03,252.69,252.63,24.17258351]
[1737925453067,0.03,252.69,252.64,1.5506]
[1737925453269,0.03,252.69,252.65,0.39565599]
[1737925453469,0.03,252.69,252.66,6.4736]
[1737925453776,0.03,252.69,252.68,20.0]
[1737925454278,0.03,252.69,252.68,3.9575]
[1737925454489,0.03,252.69,252.68,27.734384]
[1737925455076,0.03,252.69,252.68,3.9575]
[1737925455577,0.03,252.69,252.62,20.0]
[1737925457375,0.03,252.69,252.62,23.9583]
[1737925458080,0.03,252.69,252.63,0.39576097]
[1737925459366,0.03,252.69,252.63,20.39576097]
[1737925459665,0.03,252.69,252.64,3.9582]
[1737925459868,0.03,252.69,252.65,0.39569147]
[1737925460666,0.03,252.69,252.66,3.9578]
[1737925461057,0.03,252.69,252.62,20.0]
[1737925461283,0.03,252.69,252.6,3.9588]
[1737925462155,0.03,252.69,252.6,4.35460902]
[1737925462770,0.03,252.69,252.6,3.9588]
[1737925464386,0.03,252.69,252.61,0.3957792]
[1737925465479,0.03,252.69,252.62,3.9585]
[1737925465675,0.03,252.69,252.62,4.35423853]
[1737925466064,0.03,252.69,252.62,3.9585]
[1737925467380,0.03,252.69,252.63,0.39573346]
[1737925467689,0.03,252.69,252.62,3.9585]
[1737925468282,0.03,252.69,252.59,6.4736]
[1737925468587,0.03,252.69,252.6,3.9587]
[1737925469071,13.6726771,252.67,252.51,6.4736]
[1737925469754,13.6726771,252.65,252.53,20.0]
[1737925469954,13.6726771,252.65,252.49,33.8618]
[1737925470157,13.6726771,252.65,252.52,20.0]
[1737925470587,13.6726771,252.63,252.52,23.9599]
[1737925470784,13.6726771,252.61,252.49,20.0]
[1737925471192,13.6726771,252.59,252.45,23.961]
[1737925471488,13.6726771,252.53,252.41,3.9617]
[1737925471683,13.6726771,252.51,252.35,20.0]
[1737925471989,13.6726771,252.51,252.38,3.9622]
[1737925472285,13.6726771,252.51,252.4,3.9619]
[1737925472676,17.6329771,252.51,252.38,3.9622]
[1737925473069,17.6329771,252.51,252.49,0.063]
[1737925473765,23.776884,252.5,252.33,0.39604261]
[1737925474068,13.6726771,252.44,252.31,3.9632]
[1737925474274,13.6726771,252.44,252.32,3.9631]
[1737925474894,3.14,252.47,252.3,0.063]
[1737925474895,13.6726771,252.46,252.33,0.39625374]
[1737925475063,13.6726771,252.46,252.36,3.9624]
[1737925475387,3.14,252.47,252.36,3.9624]
[1737925475565,17.6333771,252.48,252.36,3.9624]
[1737925476184,13.6726771,252.46,252.36,3.9624]
[1737925476487,13.6726771,252.44,252.31,3.9633]
[1737925476995,13.6726771,252.44,252.3,4.0264]
[1737925477693,13.6726771,252.44,252.3,0.063]
[1737925478068,17.6339771,252.44,252.3,0.063]
[1737925480090,41.4108611,252.44,252.3,0.063]
[1737925480395,20.0,252.4,252.3,0.063]
[1737925480597,13.6726771,252.38,252.3,0.063]
[1737925480765,13.6726771,252.4,252.3,0.063]
[1737925480965,13.6726771,252.38,252.3,0.063]
[1737925481922,13.6726771,252.36,252.3,0.063]
[1737925482090,3.9627,252.35,252.3,0.063]
[1737925484080,13.6726771,252.34,252.3,0.063]
[1737925484986,13.6726771,252.31,252.3,0.063]
[1737925485693,17.6359771,252.31,252.3,0.063]
[1737925487088,41.4128611,252.31,252.3,0.063]
[1737925488077,42.9647611,252.31,252.3,0.0001]
[1737925489997,23.776884,252.26,252.2,1.005]
[1737925490198,13.6726771,252.21,252.2,1.005]
[1737925490500,13.6726771,252.23,252.2,1.005]
[1737925491366,17.6373771,252.23,252.2,1.005]
[1737925491572,3.9647,252.23,252.2,1.005]
[1737925491773,13.6726771,252.22,252.14,3.721]
[1737925492074,3.9647,252.23,252.05,1.5628]
[1737925492075,13.6726771,252.2,252.05,1.5628]
[1737925492384,13.6726771,252.2,252.09,10.5008]
[1737925492586,8.58795132,252.2,252.09,10.5008]
[1737925492779,8.58795132,252.22,252.09,20.4178]
[1737925493992,8.58795132,252.22,252.09,19.9178]
[1737925494501,3.9643,252.25,252.09,19.9178]
[1737925494502,8.58795132,252.2,252.09,19.9178]
[1737925494975,8.58795132,252.18,252.09,10.0008]
[1737925496200,8.58795132,252.14,252.04,0.063]
[1737925496375,20.0,252.03,252.0,5.0]
[1737925496580,11.76795132,252.02,252.0,5.0]
[1737925497296,8.58795132,252.02,252.0,5.0]
[1737925498201,20.0,251.99,251.87,0.78873122]
[1737925498385,8.58795132,251.88,251.87,0.78873122]
[1737925499277,11.96795132,251.88,251.87,0.78873122]
[1737925499598,35.74483532,251.88,251.87,0.78873122]
[1737925500099,11.96795132,251.88,251.87,0.78873122]
[1737925500605,40.94281801,251.88,251.87,0.78873122]
[1737925501307,17.16593401,251.88,251.69,3.973]
[1737925501615,17.16593401,251.88,251.64,6.286]
[1737925501616,13.78593401,251.7,251.64,6.286]
[1737925501783,13.78593401,251.68,251.64,6.286]
[1737925501982,13.78593401,251.7,251.64,6.286]
[1737925502485,13.78593401,251.72,251.64,6.286]
[1737925502688,13.78593401,251.7,251.64,6.286]
[1737925503094,13.78593401,251.74,251.64,6.286]
[1737925503398,13.78593401,251.72,251.64,6.286]
[1737925503811,13.78593401,251.72,251.64,10.2597]
[1737925504443,9.9257,251.87,251.64,10.2597]
[1737925504444,13.78593401,251.76,251.64,10.2597]
[1737925504612,34.38,251.88,251.67,20.0]
[1737925504613,13.78593401,251.81,251.67,20.0]
[1737925504990,13.78593401,251.77,251.67,20.0]
[1737925505586,13.78593401,251.79,251.64,20.1945]
[1737925505996,13.78593401,251.79,251.64,20.59172745]
[1737925506507,13.78593401,251.79,251.64,20.1945]
[1737925508117,13.78593401,251.74,251.64,10.2597]
[1737925509595,13.78593401,251.72,251.64,10.2597]
[1737925509902,13.78593401,251.74,251.64,3.9737]
[1737925510102,13.78593401,251.69,251.6,3.9745]
[1737925510318,13.78593401,251.69,251.63,0.063]
[1737925510624,13.78593401,251.75,251.63,0.063]
[1737925511304,13.78593401,251.75,251.64,3.9739]
[1737925511801,13.78593401,251.71,251.64,3.9739]
[1737925512004,13.78593401,251.71,251.63,0.063]
[1737925512515,13.78593401,251.71,251.63,4.037]
[1737925513110,3.9716,251.79,251.63,4.037]
[1737925513111,13.78593401,251.75,251.63,4.037]
[1737925513418,13.78593401,251.79,251.63,24.037]
[1737925513603,13.78593401,251.81,251.65,20.0]
[1737925514008,13.78593401,251.81,251.65,20.39725293]
[1737925514822,13.78593401,251.83,251.66,23.9736]
[1737925515029,13.78593401,251.83,251.67,0.39721717]
[1737925515322,13.78593401,251.83,251.68,6.0821]
[1737925515696,17.75683401,251.83,251.68,6.0821]
[1737925516018,13.78593401,251.89,251.69,24.17412124]
[1737925516217,13.78593401,251.89,251.73,1.5105]
[1737925516407,13.78593401,251.89,251.74,0.3971036]
[1737925517007,13.78593401,251.89,251.75,3.9721]
[1737925517313,13.78593401,251.87,251.75,3.9721]
[1737925518920,17.75623401,251.87,251.75,3.9721]
[1737925519112,17.75623401,251.87,251.73,5.4829]
[1737925519315,13.78593401,251.87,251.73,5.4829]